fUSD/lending_fUSD_20240508
["ID","MTS","AMOUNT","RATE_DAILY","PERIOD"]
[326651984,1715199146900,-5000.0,0.0004025,120]
[326651985,1715199146955,-8000.0,0.000403,120]
[326651986,1715199147012,-5000.0,0.00040313,120]
[326651987,1715199147070,-8000.0,0.0004035,120]
[326651988,1715199147129,-590.288028,0.00040375,120]
[326651989,1715199147185,-5000.0,0.00040375,120]
[326651990,1715199147241,-8000.0,0.000404,120]
[326651991,1715199147298,-5000.0,0.00040438,120]
[326651992,1715199147354,-8000.0,0.0004045,120]
[326651993,1715199147413,-8000.0,0.000405,120]
[326651994,1715199147468,-5000.0,0.000405,120]
[326651995,1715199147524,-8000.0,0.0004055,120]
[326651996,1715199147580,-5000.0,0.00040563,120]
[326651997,1715199149681,-8000.0,0.000406,120]
[326651998,1715199150845,-8000.0,0.0004065,120]
[326651999,1715199154373,-5000.0,0.00040688,120]
[326652000,1715199154930,-2138.58,0.000407,120]
[326652001,1715199154990,-5000.0,0.0004075,120]
[326652002,1715199155048,-5000.0,0.00040813,120]
[326652003,1715199155104,-5000.0,0.00040875,120]
[326652004,1715199155165,-5000.0,0.00040938,120]
[326652005,1715199155224,-1829.74516272,0.00041,33]
[326652006,1715199155284,-500.0,0.00041,60]
[326652007,1715199155350,-5000.0,0.00041,120]
[326652008,1715199155419,-5000.0,0.00041063,120]
[326652009,1715199155476,-510.0,0.00041095,120]
[326652010,1715199155533,-232.00247746,0.000411,60]
[326652011,1715199155588,-25000.0,0.000411,60]
[326652012,1715199155646,-5000.0,0.00041125,120]
[326652013,1715199155705,-150.0,0.00041149,120]
[326652014,1715199155762,-5000.0,0.00041188,120]
[326652015,1715199155819,-4716.98,0.0004125,120]
[326652016,1715199155875,-510.0,0.00041369,120]
[326652017,1715199155931,-797.0,0.000414,30]
[326652018,1715199155989,-552.0,0.00041643,30]
[326652019,1715199156045,-844.0,0.00041643,30]
[326652020,1715199156101,-510.0,0.00041643,120]
[326652021,1715199156161,-1200.0,0.00041852,30]
[326652022,1715199156219,-263.90174347,0.00041869,40]
[326652023,1715199156278,-264.72366697,0.00041869,40]
[326652024,1715199156334,-401.20318055,0.00041869,40]
[326652025,1715199156392,-2314.88131117,0.00041869,40]
[326652026,1715199156453,-1088.69877766,0.00041869,40]
[326652027,1715199156510,-598.07288725,0.00041917,120]
[326652028,1715199156568,-2028.16308971,0.00042,30]
[326652029,1715199156625,-2000.0,0.00042,60]
[326652030,1715199156683,-133732.09424694,0.00042,120]
[326652031,1715199156742,-479.48486699,0.00042075,120]
[326652032,1715199156807,-900.0,0.00042126,30]
[326652033,1715199156870,-150.0,0.00042365,120]
[326652034,1715199156931,-1200.0,0.000424,30]
[326652035,1715199156991,-150.0,0.000424,30]
[326652036,1715199157051,-215.40285468,0.000425,30]
[326652037,1715199157110,-515.42475462,0.000425,30]
[326652038,1715199157169,-287.54535466,0.000425,120]
[326652039,1715199157229,-3515.10807061,0.000425,120]
[326652040,1715199158587,-500.0,0.000425,30]
[326652041,1715199159803,-357586.70210575,0.000425,45]
[326652042,1715199161362,-450.0,0.000425,30]
[326652043,1715199162653,-63218.57066465,0.000425,30]
[326652044,1715199163878,-501.7,0.000425,120]
[326652045,1715199165100,-150.0,0.00042661,120]
[326652046,1715199166244,-569.50876969,0.0004267,30]
[326652047,1715199168067,-900.0,0.00042674,30]
[326652048,1715199168125,-4415.0321273,0.00042698,120]
[326652049,1715199168183,-228.56277686,0.00042698,90]
[326652050,1715199168247,-303.12451689,0.00042698,90]
[326652051,1715199168319,-176649.19376574,0.000428,60]
[326652052,1715199168379,-17350.0,0.000429,30]
[326652053,1715199168438,-14663.25510271,0.000429,58]
[326652054,1715199168497,-1200.0,0.00042948,30]
[326652055,1715199168555,-907.09938641,0.00043,120]
[326652056,1715199168615,-441.51306508,0.00043,30]
[326652057,1715199168673,-1000.0,0.00043,30]
[326652058,1715199168732,-2000.0,0.00043,30]
[326652059,1715199168789,-1000000.0,0.00043,45]
[326652060,1715199168848,-1000000.0,0.00043,55]
[326652061,1715199168907,-943.28775153,0.00043,30]
[326652062,1715199168964,-13939.40396833,0.00043,30]
[326652063,1715199169022,-260.0,0.00043,30]
[326652064,1715199169078,-185.23084662,0.00043,30]
[326652065,1715199169138,-10000.0,0.00043,120]
[326652066,1715199169195,-3009.37228432,0.00043,120]
[326652067,1715199169254,-1380.26596948,0.00043,30]
[326652068,1715199169311,-500.0,0.00043138,30]
[326652069,1715199169370,-900.0,0.00043222,30]
[326652070,1715199169428,-1833186.05788905,0.00043492,30]
[326652071,1715199176671,320.49,0.0002493,120]
[326652276,1715200178038,-259.50602993,0.00011746,2]
[326652277,1715200180719,-155.0,0.00011745,2]
[326652278,1715200182352,-155.0,0.00011745,2]
[326652279,1715200182824,-155.0,0.00011745,2]
[326652280,1715200183998,-488.22135213,0.00011745,2]
[326652281,1715200184495,-155.0,0.00011745,2]
[326652349,1715200238956,-155.0,0.0001174,2]
[326652352,1715200238966,-175.79,0.00011741,2]
[326652355,1715200238978,-4561.28272896,0.00011741,2]
[326652358,1715200238988,-405.41199627,0.00011741,2]
[326652361,1715200238998,-194.7503511,0.00011741,2]
[326652364,1715200239009,-488.22135213,0.00011741,2]
[326652365,1715200239019,-1212.7569798,0.00011742,2]
[326652366,1715200239028,-155.0,0.00011742,2]
[326652368,1715200239038,-445.69192529,0.00011742,2]
[326652369,1715200239049,-522.0096725,0.00011742,2]
[326652370,1715200239059,-161.80076929,0.00011743,2]
[326652371,1715200239069,-30.70502095,0.00011743,2]
[326652372,1715200239083,-206.46189294,0.00011743,2]
[326652373,1715200239094,-1255.74162208,0.00011745,2]
[326652374,1715200239105,-1011.42604063,0.00011746,2]
[326652375,1715200239116,-150.0,0.00011747,2]
[326652376,1715200239126,-155.0,0.00011833,2]
[326652377,1715200239136,-12362.636667,0.00011838,2]
[326652378,1715200239147,-3649.59150023,0.00012,2]
[326652379,1715200239157,-999.99,0.00012,2]
[326652380,1715200239167,-499.99,0.00013,2]
[326652381,1715200239178,-466.16042969,0.00013,2]
[326652382,1715200239188,-188.70189088,0.00013,2]
[326652383,1715200239199,-4184.10628137,0.00014824,2]
[326652384,1715200239211,-7264.57097051,0.00014824,2]
[326652385,1715200239221,-9761.31,0.00014825,2]
[326652386,1715200239232,-160.24,0.00014826,2]
[326652387,1715200239242,-1982.36,0.00014826,2]
[326652388,1715200239252,-1163.57,0.00014826,2]
[326652389,1715200239263,-2939.63,0.00014826,2]
[326652390,1715200239272,-250.0,0.00015492,2]
[326652391,1715200239282,-600.45,0.00015918,2]
[326652392,1715200239292,-157.13,0.00016403,2]
[326652393,1715200239302,-157.13,0.00016485,2]
[326652394,1715200239311,-167.29,0.00016517,2]
[326652395,1715200239322,-781.07,0.00016822,2]
[326652396,1715200239331,-162.16542458,0.00017297,2]
[326652397,1715200239341,-153.07187295,0.00017466,2]
[326652398,1715200239351,-600.45,0.00017908,2]
[326652399,1715200239362,-150.16202934,0.00017952,2]
[326652400,1715200239372,-1050.0,0.00018,3]
[326652401,1715200239384,-150.16202934,0.00018415,2]
[326652402,1715200239394,-154.51282504,0.00018517,2]
[326652403,1715200239405,-1347.79881827,0.000189,2]
[326652404,1715200239416,-1952.52810893,0.000189,2]
[326652405,1715200239426,-2346.08270986,0.00018998,2]
[326652406,1715200239436,-331.1786662,0.00018998,2]
[326652407,1715200239446,-223.65370089,0.00018998,2]
[326652408,1715200239456,-1244.62081356,0.00018998,2]
[326652409,1715200239466,-313.33774553,0.00018998,2]
[326652410,1715200239476,-323.86893567,0.00018998,2]
[326652411,1715200239487,-155.0,0.00018998,2]
[326652412,1715200239497,-155.0,0.00018998,2]
[326652413,1715200239508,-155.0,0.00018998,2]
[326652414,1715200239517,-2528.0928301,0.00018999,2]
[326652415,1715200239527,-20764.42046983,0.00019,2]
[326652416,1715200239541,-6531.04433515,0.00019,2]
[326652417,1715200239553,-1241.1468701,0.00019,2]
[326652418,1715200239566,-324.10000261,0.00019,2]
[326652419,1715200239580,-618.46,0.00019,2]
[326652420,1715200239593,-295.87,0.00019,2]
[326652421,1715200239608,-1269.05534468,0.00019,2]
[326652422,1715200239620,-11784.02342862,0.00019,2]
[326652423,1715200239632,-406.9919406,0.00019,2]
[326652424,1715200239646,-677.45377569,0.00019,2]
[326652425,1715200239658,-3187.1585664,0.00019,2]
[326652426,1715200239670,-1271.46687446,0.00019,2]
[326652427,1715200239683,-496.29675969,0.00019,2]
[326652428,1715200239696,-296.53135641,0.00019,2]
[326652429,1715200239709,-6223.293465,0.00019,2]
[326652430,1715200239721,-410.46357357,0.00019,2]
[326652431,1715200239734,-315.0,0.00019,2]
[326652432,1715200239746,-351.68374011,0.00019,2]
[326652433,1715200239758,-358.03790204,0.00019,2]
[326652434,1715200239771,-1044.84516421,0.00019,2]
[326652435,1715200239784,-670.78694448,0.00019,2]
[326652436,1715200243892,-3140.10265864,0.00019,2]
[326652439,1715200243904,-147413.35019498,0.00019,2]
[326652443,1715200243914,-5000.0,0.00019,2]
[326652446,1715200243923,-150.16202934,0.00019101,2]
[326652448,1715200243933,-151.68738031,0.00019101,2]
[326652450,1715200243943,-155.58,0.00019178,2]
[326652452,1715200243952,-264.1,0.00019178,2]
[326652454,1715200243961,-10076.6397144,0.00019281,2]
[326652456,1715200243970,-735.33872462,0.00019348,2]
[326652457,1715200243979,-158.5390509,0.0001944,2]
[326652458,1715200243989,-248.35796841,0.00019448,2]
[326652459,1715200243998,-240.71304375,0.00019448,2]
[326652460,1715200244007,-155.87468371,0.00019448,2]
[326652461,1715200244016,-248.485701,0.00019448,2]
[326652462,1715200244026,-250.21803071,0.00019448,2]
[326652463,1715200244035,-155.0,0.00019448,2]
[326652464,1715200244044,-3082.73013439,0.00019448,2]
[326652465,1715200244053,-155.0,0.00019448,2]
[326652466,1715200244063,-155.0,0.00019448,2]
[326652467,1715200244072,-155.0,0.00019448,2]
[326652468,1715200244082,-1532.67439124,0.00019448,2]
[326652469,1715200244091,-299.99666325,0.00019448,2]
[326652470,1715200244100,-2357.1227683,0.00019448,2]
[326652471,1715200244109,-622.01146866,0.00019448,2]
[326652472,1715200244118,-651.4673219,0.00019448,2]
[326652473,1715200244127,-317.50862952,0.00019449,2]
[326652474,1715200244136,-1081.07184772,0.00019449,5]
[326652475,1715200244145,-357079.52002529,0.0001945,2]
[326652476,1715200244154,-401.1908355,0.00019462,2]
[326652477,1715200244163,-781.07,0.00019562,2]
[326652478,1715200244172,-735.33872462,0.00019713,2]
[326652479,1715200244181,-150.16202934,0.00019777,2]
[326652480,1715200244191,-180.00567291,0.000198,2]
[326652481,1715200244201,-7271.13,0.00019879,2]
[326652482,1715200244210,-1347.79881823,0.00019889,2]
[326652483,1715200244219,-1952.5281089,0.00019894,2]
[326652484,1715200244228,-600.45,0.00019897,2]
[326652485,1715200244237,-11442.46056146,0.000199,2]
[326652486,1715200244246,-11442.46056145,0.000199,2]
[326652487,1715200244256,-11442.46056145,0.000199,2]
[326652488,1715200244265,-320.49,0.00019944,2]
[326652489,1715200244274,-150.16202934,0.00019971,2]
[326652490,1715200244292,-155.19425377,0.0002,2]
[326652492,1715200244320,-1100.0,0.0002,3]
[326652493,1715200244338,-162.16542458,0.00020076,2]
[326652494,1715200244348,-735.33872462,0.00020077,2]
[326652495,1715200244358,-735.33872462,0.00020442,2]
[326652496,1715200244368,-156.69972694,0.00020547,2]
[326652497,1715200244377,-171.34169743,0.00020547,2]
[326652498,1715200244387,-155.33392723,0.00020547,2]
[326652499,1715200244396,-184.05186467,0.00020547,2]
[326652500,1715200244405,-3658.63465762,0.00020547,2]
[326652501,1715200244414,-5175.72990395,0.00020547,2]
[326652502,1715200244424,-860.48028371,0.00020547,2]
[326652503,1715200244433,-6227.01127323,0.00020547,2]
[326652504,1715200244442,-191.81425604,0.00020548,2]
[326652505,1715200244451,-7468.74,0.0002055,2]
[326652506,1715200244462,-154.51282504,0.00020615,2]
[326652507,1715200244472,-735.33872462,0.00020806,2]
[326652508,1715200244481,-1347.79881823,0.00020878,2]
[326652509,1715200244490,-1952.5281089,0.00020888,2]
[326652510,1715200244499,-1295.87608614,0.00020898,2]
[326652511,1715200244508,-150.16202934,0.00020981,2]
[326652512,1715200244518,-718.82272761,0.00021,2]
[326652513,1715200244529,-735.33872462,0.00021171,2]
[326652514,1715200244540,-735.33872462,0.00021535,2]
[326652515,1715200244549,-10000.0,0.00021555,2]
[326652516,1715200244559,-152.19,0.00021589,15]
[326652517,1715200244568,-21518.05949525,0.00021778,2]
[326652518,1715200244578,-1347.79881823,0.00021867,2]
[326652519,1715200244587,-1952.5281089,0.00021882,2]
[326652520,1715200244603,-600.45,0.00021887,2]
[326652521,1715200244613,-153.24,0.0002189,2]
[326652522,1715200244622,-210.9973,0.00021891,2]
[326652523,1715200244631,-6757.61638509,0.000219,2]
[326652524,1715200244642,-676.48777196,0.000219,2]
[326652525,1715200244652,-166.27153992,0.000219,2]
[326652526,1715200244663,-1250.0,0.000219,2]
[326652527,1715200244671,-500.0,0.000219,2]
[326652528,1715200244682,-1000.0,0.000219,2]
[326652529,1715200244692,-150.16202934,0.000219,2]
[326652530,1715200244701,-10000.0,0.000219,2]
[326652531,1715200244711,-352.37084188,0.000219,2]
[326652532,1715200244719,-153.10102609,0.000219,2]
[326652533,1715200244729,-545.63661658,0.000219,2]
[326652534,1715200244739,-1698.49346495,0.000219,2]
[326652535,1715200244748,-735.33872462,0.000219,2]
[326652536,1715200244757,-1000.0,0.00021918,2]
[326652537,1715200244767,-1000.0,0.00021918,2]
[326652538,1715200244776,-1000.0,0.00021918,2]
[326652539,1715200244786,-1030.0,0.00021918,2]
[326652540,1715200244795,-1000.0,0.00021918,2]
[326652541,1715200244804,-1000.0,0.00021918,2]
[326652542,1715200244813,-1000.0,0.00021918,2]
[326652543,1715200244823,-1000.0,0.00021918,2]
[326652544,1715200244832,-1000.0,0.00021918,2]
[326652545,1715200244920,-1000.0,0.00021918,2]
[326652546,1715200244930,-1000.0,0.00021918,2]
[326652547,1715200244939,-1000.0,0.00021918,2]
[326652548,1715200244948,-250.0,0.00021918,2]
[326652549,1715200244957,-2000.0,0.00021918,2]
[326652550,1715200244966,-2067.41781312,0.00021932,2]
[326652551,1715200244975,-156.71892795,0.00021932,2]
[326652552,1715200244984,-427.88605358,0.00021987,2]
[326652553,1715200244993,-448.981,0.00021991,2]
[326652554,1715200245002,-326.6,0.00021991,2]
[326652555,1715200245011,-438.0,0.00021991,2]
[326652556,1715200245020,-281.0,0.00021991,2]
[326652557,1715200245030,-1017.42,0.00021991,2]
[326652558,1715200245040,-2329.598,0.00021991,2]
[326652559,1715200245050,-1413.335,0.00021991,2]
[326652560,1715200245060,-871.098,0.00021991,2]
[326652561,1715200245070,-2329.598,0.00021991,2]
[326652562,1715200245082,-37800.0,0.00021991,2]
[326652563,1715200245091,-2295.0,0.00021991,2]
[326652564,1715200245100,-1788.0,0.00021991,2]
[326652565,1715200245108,-543.734,0.00021991,2]
[326652566,1715200245117,-1257.0,0.00021991,2]
[326652567,1715200245127,-1226.0,0.00021991,2]
[326652568,1715200245136,-202.8265,0.00021998,2]
[326652569,1715200245145,-156.20328644,0.00021998,2]
[326652570,1715200245155,-155.40867323,0.00021998,2]
[326652571,1715200245164,-494.144759,0.00021998,2]
[326652572,1715200245174,-155.27839442,0.00021998,2]
[326652573,1715200245183,-158.82332061,0.00021998,2]
[326652574,1715200245192,-156.37954986,0.00021998,2]
[326652575,1715200245201,-155.76371022,0.00021998,2]
[326652576,1715200245210,-1259.96596893,0.00021998,2]
[326652577,1715200245220,-155.20047157,0.00021998,2]
[326652578,1715200245230,-7505.26883546,0.00021998,2]
[326652579,1715200245239,-155.20637958,0.00021998,2]
[326652580,1715200245249,-155.30629382,0.00021998,2]
[326652581,1715200245258,-155.76704409,0.00021998,2]
[326652582,1715200245267,-155.0,0.00021998,2]
[326652583,1715200245276,-642.3977412,0.00021998,2]
[326652584,1715200245286,-155.51521148,0.00021998,2]
[326652585,1715200245295,-193.02952027,0.00021998,2]
[326652586,1715200245304,-204.28283937,0.00021998,2]
[326652587,1715200245314,-9376.85363929,0.00021998,2]
[326652588,1715200245323,-343.85597693,0.00021998,2]
[326652589,1715200245334,-2511.97227395,0.00021998,2]
[326652590,1715200245343,-155.0,0.00021999,2]
[326652591,1715200245352,-7658.01342953,0.00021999,2]
[326652592,1715200245361,-155.0,0.00021999,2]
[326652593,1715200245370,-707.59365996,0.00021999,2]
[326652594,1715200245380,-2182.84243972,0.00021999,2]
[326652595,1715200245389,-207.70279797,0.00021999,2]
[326652596,1715200245399,-4248.46994557,0.00021999,2]
[326652597,1715200245408,-1081.07184771,0.00021999,10]
[326652598,1715200245418,-1151.0,0.00021999,2]
[326652599,1715200245427,-610220.79409075,0.00022,7]
[326652600,1715200245436,-40528.935075,0.00022,5]
[326652601,1715200245450,-6479.12030624,0.00022,5]
[326652602,1715200245461,-1236.75668733,0.00022,5]
[326652603,1715200245473,-324.26131148,0.00022,5]
[326652604,1715200245483,-12369.22834336,0.00022,5]
[326652605,1715200245495,-6196.2901,0.00022,5]
[326652606,1715200245506,-524.18265939,0.00022,5]
[326652607,1715200245517,-330.2694009,0.00022,5]
[326652608,1715200245534,-2918.917,0.00022,5]
[326652610,1715200245552,-3264.2938,0.00022,5]
[326652612,1715200245631,-289.82174284,0.00022,5]
[326652613,1715200245643,-611.56751101,0.00022,5]
[326652614,1715200245654,-70396.99999999,0.00022,5]
[326652615,1715200245665,-738750.0000025,0.00022,5]
[326652616,1715200245676,-4065.02696593,0.00022,5]
[326652647,1715200248361,-803.85791885,0.00021555,2]
[326652651,1715200248370,-945.39358411,0.00022,5]
[326652655,1715200248381,-295.00000001,0.00022,5]
[326652660,1715200248393,-256.73907999,0.00022,5]
[326652665,1715200248404,-2389967.54428138,0.00022,5]
[326652669,1715200248415,-1668640.79957852,0.00022,5]
[326652673,1715200248427,-11330.1985729,0.00022,5]
[326652677,1715200248438,-1236.62,0.00022,5]
[326652681,1715200248449,-620.62,0.00022,5]
[326652762,1715200258808,-155.0,0.00017259,2]
[326652765,1715200258818,-6391.012,0.00019,2]
[326652769,1715200258829,-955.078,0.00019,2]
[326652771,1715200258842,-155.0,0.00019449,2]
[326652774,1715200258852,-222.56691383,0.00019449,2]
[326652776,1715200258864,-113.50905599,0.00019449,2]
[326652778,1715200258874,-146.91093923,0.00019449,2]
[326652783,1715200258917,-354.96889065,0.00019449,2]
[326652785,1715200258926,-352.05959377,0.0001945,2]
[326652787,1715200258936,-1714.44306135,0.0001945,2]
[326652789,1715200258948,-646.49558005,0.0001945,2]
[326652791,1715200258957,-1270.93207056,0.0001945,2]
[326652794,1715200258967,-188.60432302,0.0001945,2]
[326652796,1715200258977,-474.40808339,0.00019451,2]
[326652798,1715200258986,-2184.78477533,0.00019451,2]
[326652799,1715200258996,-328.95065636,0.00019451,2]
[326652802,1715200259006,-1198.4432276,0.00019451,2]
[326652804,1715200259018,-655.50924441,0.00019451,2]
[326652806,1715200259028,-155.0,0.00019451,2]
[326652808,1715200259038,-173.3597759,0.00019451,2]
[326652810,1715200259050,-236.20487052,0.00019451,2]
[326652812,1715200259059,-404.1251728,0.00019451,2]
[326652814,1715200259068,-165.2,0.00021395,2]
[326652816,1715200259078,-427.0682151,0.00021891,2]
[326652818,1715200259095,-72.9317849,0.00021891,2]
[326652820,1715200259104,-287.51645593,0.000219,2]
[326652823,1715200259115,-502.13752266,0.000219,2]
[326652824,1715200259126,-2851.678,0.000219,2]
[326652827,1715200259137,-1980.73799767,0.000219,2]
[326652843,1715200316482,-1911.9699,0.00011646,2]
[326652844,1715200484264,-409.09518751,0.00011646,2]
[326652845,1715200501187,-258.36869252,0.00011646,2]
[326652846,1715200571447,-155.0,0.00011646,2]
[326652847,1715200575523,-892.00397844,0.00011388,2]
[326652860,1715201433395,-604.08169236,9.95e-05,2]
[326652864,1715201433407,-103.68029924,9.95e-05,2]
[326652866,1715201433416,-1296.22665742,9.951e-05,2]
[326652868,1715201433425,-193.07482509,9.952e-05,2]
[326652870,1715201433434,-2183.43778436,9.952e-05,2]
[326652872,1715201433444,-155.0,9.952e-05,2]
[326652874,1715201433453,-302.02512739,9.952e-05,2]
[326652876,1715201433462,-2258.71037641,9.952e-05,2]
[326652878,1715201433471,-343.95475102,9.953e-05,2]
[326652880,1715201433480,-207.13458287,9.954e-05,2]
[326652882,1715201433489,-326.32137656,9.954e-05,2]
[326652884,1715201433499,-538.3518557,9.972e-05,2]
[326652885,1715201433508,-150.0,9.973e-05,2]
[326652886,1715201433517,-209.05768056,0.0001,2]
[326652888,1715201433526,-204.34387367,0.00010584,2]
[326652890,1715201433535,-19685.74154207,0.00010585,2]
[326652892,1715201433546,-432.39441523,0.00010585,2]
[326652895,1715201433557,-438.40577397,0.00010585,2]
[326652896,1715201433568,-257.98061506,0.00010585,2]
[326652897,1715201433582,-1235.7165,0.00010585,2]
[326652898,1715201433593,-521.97670531,0.00010585,2]
[326652899,1715201433604,-967.82884568,0.00010585,2]
[326652900,1715201433615,-359.95560268,0.00010585,2]
[326652901,1715201433624,-601.19,0.00010585,2]
[326652902,1715201433634,-1500.0,0.00010641,2]
[326652903,1715201433643,-150.11,0.00010751,2]
[326652904,1715201433653,-248.44,0.00010751,2]
[326652905,1715201433663,-12.44791968,0.00010803,2]
[326652906,1715201433674,-241.70208032,0.00010803,2]
[326652907,1715201433684,-55.48048468,0.00010904,2]
[326652908,1715201433696,-144.51951532,0.00010904,2]
[326652909,1715201433706,-150.0,0.00010959,2]
[326652910,1715201433715,-243.21,0.00010959,2]
[326652911,1715201433725,-202.68,0.00010959,2]
[326652912,1715201433734,-506.72,0.00010959,2]
[326652913,1715201433744,-250.0,0.00011007,2]
[326652914,1715201433754,-1656.34,0.00011007,2]
[326652915,1715201433764,-1507.74,0.00011057,2]
[326652916,1715201433774,-62.65618989,0.00011388,2]
[326652917,1715201433784,-1153.78,0.00011388,2]
[326652918,1715201433793,-250.0,0.00011574,2]
[326652919,1715201433803,-155.1812949,0.00011646,2]
[326652920,1715201433812,-173.22233242,0.00011646,2]
[326652921,1715201433821,-207.62,0.0001181,2]
[326652922,1715201433833,-207.62,0.00011842,2]
[326652923,1715201433842,-207.62,0.00011875,2]
[326652924,1715201433852,-207.62,0.00011907,2]
[326652925,1715201433861,-207.62,0.0001194,2]
[326652926,1715201433871,-207.62,0.00011972,2]
[326652927,1715201433880,-2991.832728,0.00011987,2]
[326652928,1715201433889,-540.18,0.00011987,2]
[326652929,1715201433899,-240.63,0.00011987,2]
[326652930,1715201433908,-452.97,0.00011987,2]
[326652931,1715201433918,-200.14940197,0.00011988,2]
[326652932,1715201433927,-2356.03750157,0.00011988,2]
[326652933,1715201433936,-1081.07184771,0.00011988,3]
[326652934,1715201433946,-358137.12002529,0.00011989,2]
[326652935,1715201433955,-4970.82739915,0.00011999,2]
[326652936,1715201433967,-15047.36302519,0.00012,2]
[326652937,1715201433978,-207.62,0.00012004,2]
[326652938,1715201433987,-207.62,0.00012037,2]
[326652939,1715201433997,-207.62,0.00012069,2]
[326652940,1715201434008,-207.62,0.00012101,2]
[326652941,1715201434019,-207.62,0.00012134,2]
[326652942,1715201434028,-166.01,0.00012147,2]
[326652943,1715201434038,-207.62,0.00012166,2]
[326652944,1715201434048,-207.62,0.00012199,2]
[326652945,1715201434058,-207.62,0.00012231,2]
[326652946,1715201434067,-207.62,0.00012263,2]
[326652947,1715201434077,-820.06,0.00012275,2]
[326652948,1715201434090,-207.62,0.00012296,2]
[326652949,1715201434100,-207.62,0.00012328,2]
[326652950,1715201434109,-207.62,0.00012361,2]
[326652951,1715201434119,-207.62,0.00012393,2]
[326652952,1715201434129,-207.62,0.00012425,2]
[326652953,1715201434138,-150.11,0.00012543,2]
[326652954,1715201434149,-300.0,0.000126,4]
[326652955,1715201434158,-600.0,0.000127,4]
[326652956,1715201434169,-900.0,0.000128,4]
[326652957,1715201434178,-1217.02437433,0.000129,2]
[326652958,1715201434188,-166.27153992,0.000129,2]
[326652959,1715201434198,-1300.0,0.000129,4]
[326652960,1715201434208,-2321.94274704,0.000129,2]
[326652961,1715201434218,-181.8788722,0.000129,2]
[326652962,1715201434229,-282.9552942,0.000129,2]
[326652963,1715201434239,-566.16448833,0.000129,2]
[326652964,1715201434249,-158.5390509,0.0001299,2]
[326652965,1715201434258,-151.81,0.0001299,2]
[326652966,1715201434272,-151.81,0.0001299,2]
[326652967,1715201434282,-151.81,0.0001299,2]
[326652968,1715201434292,-156.69972694,0.00012998,2]
[326652969,1715201434301,-171.34169743,0.00012998,2]
[326652970,1715201434311,-1532.67439124,0.00012998,2]
[326652971,1715201434321,-155.87468371,0.00012998,2]
[326652972,1715201434333,-155.0,0.00012998,2]
[326652973,1715201434343,-248.35796841,0.00012998,2]
[326652974,1715201434352,-622.01146866,0.00012998,2]
[326652975,1715201434362,-155.0,0.00012998,2]
[326652976,1715201434371,-250.21803071,0.00012998,2]
[326652977,1715201434381,-155.0,0.00012998,2]
[326652978,1715201434391,-3082.73013439,0.00012998,2]
[326652979,1715201434401,-299.99666325,0.00012998,2]
[326652980,1715201434411,-2357.1227683,0.00012998,2]
[326652981,1715201434420,-240.71304375,0.00012998,2]
[326652982,1715201434430,-155.0,0.00012998,2]
[326652983,1715201434440,-248.485701,0.00012998,2]
[326652984,1715201434450,-1052.05964256,0.00012998,2]
[326652985,1715201434460,-317.50862952,0.00012998,2]
[326652986,1715201434469,-191.81425604,0.00012999,2]
[326652987,1715201434479,-3658.63465762,0.00012999,2]
[326652988,1715201434490,-1081.07184772,0.00012999,3]
[326652989,1715201434500,-208523.21391284,0.00013,2]
[326652990,1715201434513,-2360.35387545,0.00013,2]
[326652991,1715201434525,-1119.80783631,0.00013,2]
[326652992,1715201434538,-22238.22940248,0.00013,2]
[326652993,1715201434549,-2942.69004989,0.00013,2]
[326652994,1715201434561,-9179.22619712,0.00013,2]
[326652995,1715201434573,-752.35031756,0.00013,2]
[326652996,1715201434589,-422.76314946,0.00013,2]
[326652997,1715201434685,-2478.29101073,0.00013,2]
[326652998,1715201434696,-556.70320369,0.00013,2]